bitfinex/quotes_BTCUSD_20251024
["timestamp","ask_amount","ask_price","bid_price","bid_amount"]
[1761293252310,0.0001313,110920.0,110910.0,0.52559672]
[1761293252514,0.0001313,110920.0,110910.0,0.21650867]
[1761293252714,0.0001313,110920.0,110910.0,0.81541573]
[1761293252921,0.02705575,110940.0,110930.0,0.21647615]
[1761293253154,0.18076375,110940.0,110930.0,0.21647615]
[1761293253399,0.00048613,110940.0,110930.0,0.21647615]
[1761293254598,0.00148613,110940.0,110930.0,0.21647615]
[1761293254833,0.00048613,110940.0,110930.0,0.21647615]
[1761293264943,0.00048613,110940.0,110930.0,0.21647615]
[1761293267361,0.00048613,110940.0,110930.0,0.81538321]
[1761293268202,0.00048613,110940.0,110930.0,0.50629516]
[1761293268418,0.00048613,110940.0,110930.0,0.81538321]
[1761293268815,0.00048613,110940.0,110930.0,0.81500034]
[1761293269234,0.00048613,110940.0,110930.0,0.50629516]
[1761293269647,0.00048613,110940.0,110930.0,0.81500034]
[1761293270474,0.00048613,110940.0,110930.0,0.50629516]
[1761293271925,0.00048613,110940.0,110930.0,0.81500034]
[1761293272127,0.00048613,110940.0,110930.0,0.50629516]
[1761293272534,0.00048613,110940.0,110930.0,0.81500034]
[1761293275230,0.00048613,110940.0,110930.0,0.82536616]
[1761293276076,0.00048613,110940.0,110930.0,1.13407134]
[1761293277073,0.00048613,110940.0,110930.0,1.14407133]
[1761293277277,0.00048613,110940.0,110930.0,1.49807132]
[1761293277605,0.00048613,110940.0,110930.0,1.8067765]
[1761293277809,0.00343891,110970.0,110960.0,0.61642741]
[1761293278010,0.00352655,110970.0,110960.0,1.0149516]
[1761293278431,0.00352655,110970.0,110960.0,1.32365678]
[1761293278646,0.00352655,110970.0,110960.0,0.70624642]
[1761293278860,0.00352655,110970.0,110960.0,1.32365678]
[1761293279703,0.00352655,110970.0,110960.0,1.32465678]
[1761293280128,0.00352655,110970.0,110960.0,1.32665678]
[1761293281954,0.00352655,110970.0,110960.0,1.0179516]
[1761293282159,0.00352655,110970.0,110960.0,1.32665678]
[1761293285447,0.00352655,110970.0,110960.0,1.32565678]
[1761293285656,0.00352655,110970.0,110960.0,1.32665678]
[1761293286425,0.00352655,110970.0,110960.0,1.32465678]
[1761293286621,0.00352655,110970.0,110960.0,1.32765678]
[1761293287775,0.00352655,110970.0,110960.0,1.99636194]
[1761293291571,0.00352655,110970.0,110960.0,1.05024642]
[1761293291806,0.00352655,110970.0,110960.0,0.67406414]
[1761293292030,0.00352655,110970.0,110960.0,0.98276932]
[1761293292244,0.00352655,110970.0,110960.0,1.2914745]
[1761293292456,0.00352655,110970.0,110960.0,1.32765678]
[1761293301554,0.00352655,110970.0,110960.0,1.63636196]
[1761293302360,0.00352655,110970.0,110960.0,1.32765678]
[1761293303207,0.00352655,110970.0,110960.0,1.63636196]
[1761293303423,0.00352655,110970.0,110960.0,1.98636195]
[1761293303603,0.00352655,110970.0,110960.0,1.67765677]
[1761293303839,0.00352655,110970.0,110960.0,1.98636195]
[1761293304453,0.00352655,110970.0,110960.0,1.06024641]
[1761293304662,0.00352655,110970.0,110960.0,1.67765677]
[1761293307876,0.00352655,110970.0,110960.0,1.98636195]
[1761293308757,0.00352655,110970.0,110960.0,1.67765677]
[1761293308976,0.00352655,110970.0,110960.0,1.98636195]
[1761293311528,0.00352655,110970.0,110960.0,1.99636194]
[1761293311959,0.00352655,110970.0,110960.0,2.14576194]
[1761293312881,0.00900819,111010.0,111000.0,0.38018018]
[1761293313083,0.18926107,111010.0,111000.0,0.41636246]
[1761293313253,0.01270022,111010.0,111000.0,0.41636246]
[1761293313662,0.3214054,111010.0,111000.0,0.41636246]
[1761293313863,0.50156934,111010.0,111000.0,0.03618228]
[1761293314067,0.18019641,110990.0,110960.0,0.59325738]
[1761293314272,0.48893407,110970.0,110960.0,0.004]
[1761293314477,0.79763925,110970.0,110960.0,0.004]
[1761293314798,0.53109155,110970.0,110960.0,0.001]
[1761293314998,0.18024513,110960.0,110950.0,0.18026014]
[1761293315199,0.18024513,110960.0,110940.0,0.18926062]
[1761293315374,0.18024513,110960.0,110940.0,0.27916727]
[1761293315928,0.02704699,110950.0,110940.0,0.31534955]
[1761293316290,0.02704699,110950.0,110940.0,0.19134826]
[1761293316665,0.20730836,110950.0,110940.0,0.22753054]
[1761293316873,0.20730836,110950.0,110940.0,0.22853054]
[1761293317279,0.55817102,110950.0,110940.0,0.00308764]
[1761293317671,0.20730836,110950.0,110940.0,0.00308764]
[1761293317907,0.20730836,110950.0,110940.0,0.00108764]
[1761293318218,0.20730836,110950.0,110940.0,0.00208764]
[1761293318416,0.20730836,110950.0,110940.0,0.00308764]
[1761293318619,0.20730836,110950.0,110940.0,0.00108764]
[1761293319033,0.55817102,110950.0,110940.0,8.764e-05]
[1761293319623,0.20730836,110950.0,110940.0,8.764e-05]
[1761293320684,0.55817102,110950.0,110940.0,8.764e-05]
[1761293321432,0.98799003,110950.0,110940.0,8.764e-05]
[1761293321663,0.54730836,110950.0,110940.0,8.764e-05]
[1761293322538,0.98799003,110950.0,110940.0,8.764e-05]
[1761293322760,1.07544202,110950.0,110940.0,8.764e-05]
[1761293323188,1.08580264,110950.0,110940.0,8.764e-05]
[1761293323510,1.14344264,110950.0,110940.0,8.764e-05]
[1761293324572,1.14444264,110950.0,110940.0,8.764e-05]
[1761293324787,1.05699065,110950.0,110940.0,8.764e-05]
[1761293328900,0.29812737,110950.0,110940.0,8.764e-05]
[1761293329263,0.63812737,110950.0,110940.0,8.764e-05]
[1761293329464,0.98899003,110950.0,110940.0,8.764e-05]
[1761293330763,0.63812737,110950.0,110940.0,8.764e-05]
[1761293335742,0.36804699,110950.0,110940.0,0.18036526]
[1761293335971,0.54830836,110950.0,110940.0,0.18036526]
[1761293336174,0.54826836,110950.0,110940.0,0.18036526]
[1761293336850,0.54826836,110950.0,110940.0,8.764e-05]
[1761293337051,0.02800699,110950.0,110940.0,0.21654754]
[1761293340137,0.02800699,110950.0,110940.0,0.52534898]
[1761293340839,0.02700699,110950.0,110940.0,0.52534898]
[1761293341276,0.02700699,110950.0,110940.0,0.52734898]
[1761293341496,0.18055589,110980.0,110970.0,0.18022889]
[1761293341726,0.02704545,110970.0,110960.0,0.41641381]
[1761293342197,0.98869746,110980.0,110960.0,0.41641381]
[1761293342426,0.02700545,110970.0,110960.0,0.41641381]
[1761293343312,0.002,110980.0,110970.0,0.18022889]
[1761293343758,0.02904341,110980.0,110970.0,0.23443405]
[1761293343977,0.02704341,110980.0,110970.0,0.21641117]
[1761293344434,0.02804341,110980.0,110970.0,0.21641117]
[1761293344672,0.02704341,110980.0,110970.0,0.21641117]
[1761293346682,0.34,110990.0,110980.0,0.38021265]
[1761293346900,0.52019641,110990.0,110980.0,0.38021265]
[1761293347319,0.52053623,110990.0,110980.0,0.38021265]
[1761293347533,0.52053623,110990.0,110980.0,0.2]
[1761293348200,0.52153623,110990.0,110980.0,0.2]
[1761293348631,0.52153623,110990.0,110980.0,0.38021265]
[1761293353392,0.34133982,110990.0,110980.0,0.38021265]
[1761293353812,0.00133982,110990.0,110980.0,0.38021265]
[1761293354018,0.00133982,110990.0,110980.0,0.41639493]
[1761293355101,0.00033982,110990.0,110980.0,0.41639493]
[1761293355314,0.00033982,110990.0,110980.0,0.41739493]
[1761293355763,0.00033982,110990.0,110980.0,0.72619637]
[1761293356259,0.00033982,110990.0,110980.0,0.72719637]
[1761293357761,0.00033982,110990.0,110980.0,0.81701538]
[1761293357962,0.00033982,110990.0,110980.0,0.84405152]
[1761293359721,0.00033982,110990.0,110980.0,1.04405152]
[1761293368539,0.00033982,110990.0,110980.0,1.04305152]
[1761293368747,0.00033982,110990.0,110980.0,1.04205152]
[1761293368956,0.00033982,110990.0,110980.0,1.04305152]
[1761293369501,0.00033982,110990.0,110980.0,1.04605152]
[1761293371401,1e-08,110990.0,110980.0,1.39605151]
[1761293372514,1e-08,110990.0,110980.0,1.38605152]
[1761293372921,1e-08,110990.0,110980.0,1.39605151]
[1761293373129,1e-08,110990.0,110980.0,1.38605152]
[1761293373344,1e-08,110990.0,110980.0,1.39605151]
[1761293373754,1e-08,110990.0,110980.0,1.38605152]
[1761293373982,1e-08,110990.0,110980.0,1.39605151]
[1761293374794,1e-08,110990.0,110980.0,1.36901537]
[1761293380030,1e-08,110990.0,110980.0,1.37901536]
[1761293380897,1e-08,110990.0,110980.0,1.37501536]
[1761293381066,1e-08,110990.0,110980.0,1.38001536]
[1761293381212,1e-08,110990.0,110980.0,1.38201536]
[1761293390872,1e-08,110990.0,110980.0,1.99805974]
[1761293393560,1e-08,110990.0,110980.0,2.14745974]
[1761293393735,1e-08,110990.0,110980.0,3.07230556]
[1761293396273,1e-08,110990.0,110980.0,3.07590916]
[1761293397859,1e-08,110990.0,110980.0,2.92650916]
[1761293399501,1e-08,110990.0,110980.0,2.95169381]
[1761293400829,1e-08,110990.0,110980.0,2.94469381]
[1761293401041,1e-08,110990.0,110980.0,2.94769381]
[1761293401252,1e-08,110990.0,110980.0,2.92850916]
[1761293401777,0.0004,111020.0,111010.0,1.2329101]
[1761293401987,0.00054576,111020.0,111010.0,1.32272911]
[1761293402416,0.0015649,111020.0,111010.0,1.66272911]
[1761293403056,0.0015649,111020.0,111010.0,1.66372911]
[1761293403255,0.0015649,111020.0,111010.0,1.66572911]
[1761293404361,0.0015649,111020.0,111010.0,1.97401105]
[1761293404568,1e-08,111020.0,111010.0,1.98401104]
[1761293404771,1e-08,111020.0,111010.0,1.99401103]
[1761293404987,1e-08,111020.0,111010.0,1.68572909]
[1761293405953,1e-08,111020.0,111010.0,1.6757291]
[1761293406154,1e-08,111020.0,111010.0,1.68572909]
[1761293406777,1e-08,111020.0,111010.0,1.69531783]
[1761293407197,1e-08,111020.0,111010.0,1.06875396]
[1761293407415,1e-08,111020.0,111010.0,1.69531783]
[1761293409184,1e-08,111020.0,111010.0,1.68531784]
[1761293409390,1e-08,111020.0,111010.0,1.69531783]
[1761293413559,1e-08,111020.0,111010.0,2.00359977]
[1761293413761,1e-08,111020.0,111010.0,1.69531783]
[1761293416124,1e-08,111020.0,111010.0,2.00359977]
[1761293417117,1e-08,111020.0,111010.0,2.00159977]
[1761293417335,1e-08,111020.0,111010.0,2.00459977]
[1761293417669,1e-08,111020.0,111010.0,2.00159977]
[1761293417842,1e-08,111020.0,111010.0,2.00059977]
[1761293418058,1e-08,111020.0,111010.0,2.00259977]
[1761293418261,1e-08,111020.0,111010.0,2.02928569]
[1761293418581,1e-08,111020.0,111010.0,2.00059977]
[1761293419028,1e-08,111020.0,111010.0,2.00559977]
[1761293420279,1e-08,111030.0,111020.0,0.57632998]
[1761293420502,8.751e-05,111030.0,111020.0,1.59099481]
[1761293420880,0.0004,111040.0,111030.0,0.61631377]
[1761293421109,0.0004,111040.0,111030.0,1.32269666]
[1761293421576,0.00073959,111040.0,111030.0,1.32269666]
[1761293422390,0.00073959,111040.0,111030.0,1.32369666]
[1761293427853,0.00073959,111040.0,111030.0,0.70713278]
[1761293428081,0.00073959,111040.0,111030.0,1.32369666]
[1761293430699,0.00073959,111040.0,111030.0,1.01541472]
[1761293430847,0.00073959,111040.0,111030.0,0.70713278]
[1761293431033,0.00073959,111040.0,111030.0,1.01541472]
[1761293431237,0.00073959,111040.0,111030.0,1.32369666]
[1761293435377,0.00073959,111040.0,111030.0,1.32729934]
[1761293445242,0.83733682,111080.0,111070.0,0.2]
[1761293445473,0.84142501,111080.0,111070.0,0.2]
[1761293446594,0.53314307,111080.0,111070.0,0.2]
[1761293446793,0.84142501,111080.0,111070.0,0.2]
[1761293449465,0.86084036,111080.0,111070.0,0.2]
[1761293450801,0.18006662,111070.0,111060.0,0.21626511]
[1761293451001,0.84278283,111080.0,111060.0,0.21626511]
[1761293451202,0.86084143,111080.0,111060.0,0.21626511]
[1761293452227,0.18006662,111070.0,111060.0,0.03618228]
[1761293452476,0.48834856,111070.0,111060.0,0.21626511]
[1761293452694,0.5153689,111070.0,111060.0,0.21626511]
[1761293452947,0.20708696,111070.0,111060.0,0.21626511]
[1761293453160,0.02702034,111070.0,111060.0,0.21626511]
[1761293453370,0.20708696,111070.0,111060.0,0.21626511]
[1761293454597,0.20708696,111070.0,111060.0,0.71626511]
[1761293454827,0.85520047,111070.0,111060.0,0.5]
[1761293455027,0.8746157,111070.0,111060.0,0.5]
[1761293455670,0.56650219,111070.0,111060.0,0.5]
[1761293455870,0.8746157,111070.0,111060.0,0.5]
[1761293456283,0.87563416,111070.0,111060.0,0.5]
[1761293457670,1.42780668,111070.0,111060.0,0.5]
[1761293458330,1.45200465,111070.0,111060.0,0.5]
[1761293458955,1.48421837,111070.0,111060.0,0.5]
[1761293459708,1.48521837,111070.0,111060.0,0.5]
[1761293461207,1.57503738,111070.0,111060.0,0.5]
[1761293461414,1.48521837,111070.0,111060.0,0.5]
[1761293462497,1.32597837,111070.0,111060.0,0.5]
[1761293462700,1.48521837,111070.0,111060.0,0.5]
[1761293463337,1.45300465,111070.0,111060.0,0.5]
[1761293467653,0.98565114,111070.0,111060.0,0.5]
[1761293467876,1.45300465,111070.0,111060.0,0.5]
[1761293471917,0.31333966,111070.0,111060.0,0.5]
[1761293472130,1.12069317,111070.0,111060.0,0.5]
[1761293474150,0.96145317,111070.0,111060.0,0.5]
[1761293474378,1.12069317,111070.0,111060.0,0.5]
[1761293475828,1.12065317,111070.0,111060.0,0.5]
[1761293478171,0.96145317,111070.0,111060.0,0.5]
[1761293478378,1.12065317,111070.0,111060.0,0.5]
[1761293481326,0.91856621,111070.0,111060.0,0.5]
[1761293481630,1.09863283,111070.0,111060.0,0.5]
[1761293486300,1.09859283,111070.0,111060.0,0.5]
[1761293487669,0.79047932,111070.0,111060.0,0.5]
[1761293487878,1.09859283,111070.0,111060.0,0.5]
[1761293488305,0.20150031,111070.0,111060.0,0.5]
[1761293488517,0.36066031,111070.0,111060.0,0.5]
[1761293488741,0.20150031,111070.0,111060.0,0.68008283]
[1761293488933,0.54150031,111070.0,111060.0,0.68008283]
[1761293489144,0.54050031,111070.0,111060.0,0.68008283]
[1761293489572,0.54050031,111070.0,111060.0,0.71626511]
[1761293489573,0.52108508,111070.0,111060.0,0.71626511]
[1761293490423,0.34101846,111070.0,111060.0,0.71626511]
[1761293490636,0.52108508,111070.0,111060.0,0.71626511]
[1761293491073,0.52308508,111070.0,111060.0,0.71626511]
[1761293493277,0.52308508,111070.0,111060.0,0.53618228]
[1761293493490,0.83119859,111070.0,111060.0,0.5]
[1761293494841,0.85055959,111070.0,111060.0,0.5]
[1761293495253,0.54244608,111070.0,111060.0,0.5]
[1761293495460,0.85055959,111070.0,111060.0,0.5]
[1761293500692,0.87475756,111070.0,111060.0,0.5]
[1761293503802,0.56664405,111070.0,111060.0,0.5]
[1761293504239,0.87475756,111070.0,111060.0,0.5]
[1761293508366,1.03387756,111070.0,111060.0,0.5]
[1761293509220,0.48859451,111070.0,111060.0,0.5]
[1761293509415,0.66866113,111070.0,111060.0,0.5]
[1761293511907,0.84954113,111070.0,111060.0,0.5]
[1761293512053,1.00866113,111070.0,111060.0,0.5]
[1761293514888,1.31701766,111070.0,111060.0,0.5]
[1761293516381,1.15789766,111070.0,111060.0,0.5]
[1761293516597,1.31697766,111070.0,111060.0,0.5]
[1761293519399,1.00874264,111070.0,111060.0,0.5]
[1761293522307,1.03294061,111070.0,111060.0,0.5]
[1761293529752,1.03304433,111070.0,111060.0,0.5]
[1761293530185,1.34127935,111070.0,111060.0,0.5]
[1761293530681,1.03304433,111070.0,111060.0,0.5]
[1761293532619,0.72480931,111070.0,111060.0,0.5]
[1761293532771,1.03304433,111070.0,111060.0,0.5]
[1761293533748,0.72480931,111070.0,111060.0,0.5]
[1761293534034,1.03304433,111070.0,111060.0,0.5]
[1761293535099,0.72480931,111070.0,111060.0,0.5]
[1761293535310,1.03304433,111070.0,111060.0,0.5]
[1761293535966,0.72480931,111070.0,111060.0,0.5]
[1761293536158,1.03304433,111070.0,111060.0,0.5]
[1761293543463,1.03296433,111070.0,111060.0,0.5]
[1761293543759,0.87396433,111070.0,111060.0,0.5]
[1761293543901,1.03296433,111070.0,111060.0,0.5]
[1761293547868,0.72472931,111070.0,111060.0,0.5]
[1761293548105,1.03296433,111070.0,111060.0,0.5]
[1761293549819,0.84970728,111070.0,111060.0,0.5]
[1761293550029,1.00870728,111070.0,111060.0,0.5]
[1761293551635,0.70047226,111070.0,111060.0,0.98831785]
[1761293552083,0.70047226,111070.0,111060.0,1.02450013]
[1761293553925,0.54147226,111070.0,111060.0,0.71626511]
[1761293554131,0.84970728,111070.0,111060.0,0.5]
[1761293555582,0.87672884,111070.0,111060.0,0.5]
[1761293559643,0.56849382,111070.0,111060.0,0.5]
[1761293559863,0.02902156,111070.0,111060.0,1.02450013]
[1761293560079,0.02902156,111070.0,111060.0,1.33273515]
[1761293560297,0.02902156,111070.0,111060.0,0.74328394]
[1761293560513,0.002,111070.0,111060.0,1.05151896]
[1761293562026,0.002,111070.0,111060.0,1.64957299]
[1761293562238,0.002,111070.0,111060.0,1.34133797]
[1761293563300,0.002,111070.0,111060.0,1.64957299]
[1761293564455,0.52053609,111080.0,111070.0,0.38006662]
[1761293564613,0.52053609,111080.0,111070.0,0.77812065]
[1761293564852,0.52053609,111080.0,111070.0,0.46988563]
[1761293565037,0.34082504,111080.0,111070.0,0.46988563]
[1761293565251,0.34082504,111080.0,111070.0,0.49690142]
[1761293565839,0.34082504,111080.0,111070.0,0.80513644]
[1761293566908,0.34282504,111080.0,111070.0,0.80513644]
[1761293569351,0.00282504,111080.0,111070.0,0.80513644]
[1761293572352,0.00282504,111080.0,111070.0,0.49690142]
[1761293572789,0.00282504,111080.0,111070.0,0.80513644]
[1761293573846,0.00282504,111080.0,111070.0,0.49690142]
[1761293574026,0.00282504,111080.0,111070.0,0.80513644]
[1761293574238,0.00282504,111080.0,111070.0,0.49690142]
[1761293574540,0.00282504,111080.0,111070.0,0.80513644]
[1761293574702,0.00282504,111080.0,111070.0,0.49690142]
[1761293577244,0.03261372,111130.0,111110.0,0.1800018]
[1761293577475,0.0004,111160.0,111150.0,0.17993702]
[1761293577683,0.0004,111170.0,111160.0,0.9661031]
[1761293577901,0.0004,111190.0,111180.0,0.62607073]
[1761293578114,0.00054587,111190.0,111180.0,1.06406878]
[1761293578347,0.00054587,111190.0,111180.0,1.26406878]
[1761293578546,0.01574587,111190.0,111180.0,1.26766658]
[1761293578674,0.01574587,111190.0,111180.0,1.37419203]
[1761293579086,0.00054587,111190.0,111180.0,1.68219007]
[1761293579294,0.01518587,111190.0,111180.0,1.68319007]
[1761293579494,0.45766639,111240.0,111210.0,0.21601817]
[1761293579700,0.0844,111230.0,111210.0,0.23272461]
[1761293580112,0.39239804,111230.0,111220.0,0.02698357]
[1761293580322,0.39239804,111230.0,111220.0,0.22351378]
[1761293580521,0.39239804,111230.0,111220.0,0.04369001]
[1761293581170,0.39239804,111230.0,111220.0,0.22351378]
[1761293581399,0.05756,111230.0,111220.0,0.22351378]
[1761293581561,0.218,111230.0,111220.0,0.22351378]
[1761293581761,0.558,111230.0,111220.0,0.04369001]
[1761293582005,1.35341405,111230.0,111220.0,0.04369001]
[1761293582178,1.36240443,111230.0,111200.0,0.17985505]
[1761293582376,0.64799804,111210.0,111200.0,0.04360349]
[1761293582592,0.64799804,111210.0,111180.0,0.17988846]
[1761293582593,0.1798562,111200.0,111180.0,0.17988846]
[1761293582775,0.95593705,111190.0,111180.0,0.01661664]
[1761293582973,1.13580934,111190.0,111180.0,0.01661664]
[1761293583170,1.13953897,111190.0,111180.0,0.01661664]
[1761293583505,0.85853683,111190.0,111180.0,0.01661664]
[1761293583712,0.98666258,111190.0,111170.0,0.17990402]
[1761293583948,1.16280664,111190.0,111170.0,0.18004989]
[1761293584118,0.6942486,111190.0,111170.0,0.18004989]
[1761293584320,0.16064,111180.0,111170.0,0.18004989]
[1761293584529,0.46863804,111180.0,111170.0,0.00014587]
[1761293584726,0.16064,111180.0,111170.0,0.18005052]
[1761293585414,0.16064,111180.0,111170.0,0.18105052]
[1761293585816,0.16064,111180.0,111170.0,0.18005052]
[1761293586180,0.16064,111180.0,111170.0,0.18105052]
[1761293586381,0.34052846,111180.0,111170.0,0.00214587]
[1761293586561,0.34052846,111180.0,111170.0,0.18105052]
[1761293587018,0.16064,111180.0,111170.0,0.18205052]
[1761293587985,1.23124941,111190.0,111170.0,0.18205052]
[1761293588194,0.1606,111180.0,111170.0,0.18205052]
[1761293589072,0.1606,111180.0,111170.0,0.18105052]
[1761293589502,0.16399088,111180.0,111170.0,0.18205052]
[1761293589712,0.16391088,111180.0,111170.0,0.18205052]
[1761293590176,0.00339088,111180.0,111170.0,0.18205052]
[1761293590361,0.16391088,111180.0,111170.0,0.18205052]
[1761293590507,0.16391088,111180.0,111170.0,0.18105052]
[1761293590703,0.16391088,111180.0,111170.0,0.00114587]
[1761293590704,1.22080015,111180.0,111170.0,0.00114587]
[1761293590933,1.31061916,111180.0,111170.0,0.00214587]
[1761293591135,0.77361835,111180.0,111170.0,0.00214587]
[1761293591370,1.31061916,111180.0,111170.0,0.00214587]
[1761293591548,1.31061916,111180.0,111170.0,0.00114587]
[1761293592221,1.49049916,111180.0,111170.0,0.00114587]
[1761293592379,1.51244811,111180.0,111170.0,0.00114587]
[1761293592625,1.51244811,111180.0,111170.0,0.00014587]
[1761293592756,1.49049916,111180.0,111170.0,0.00014587]
[1761293592957,1.51749703,111180.0,111170.0,0.00014587]
[1761293593198,0.98049622,111180.0,111170.0,0.00014587]
[1761293593634,0.73015721,111180.0,111170.0,0.00014587]
[1761293593837,0.86359934,111180.0,111170.0,0.00014587]
[1761293595771,1.58023817,111180.0,111170.0,0.00014587]
[1761293596337,1.58015817,111180.0,111170.0,0.00014587]
[1761293597611,1.49033916,111180.0,111170.0,0.00014587]
[1761293599995,1.51733703,111180.0,111170.0,0.00014587]
[1761293600181,1.52014747,111180.0,111170.0,0.00014587]
[1761293601229,1.52002747,111180.0,111170.0,0.00014587]
[1761293603075,1.35978747,111180.0,111170.0,0.00014587]
[1761293603288,1.52002747,111180.0,111170.0,0.00014587]
[1761293603488,1.51998747,111180.0,111170.0,0.00014587]
[1761293604304,1.51998747,111180.0,111170.0,0.50014587]
[1761293604669,1.29061033,111180.0,111170.0,0.50014587]
[1761293605282,1.68805301,111180.0,111170.0,0.50014587]
[1761293606176,1.38042934,111180.0,111170.0,0.50014587]
[1761293606738,1.68805301,111180.0,111170.0,0.50014587]
[1761293607119,1.68805301,111180.0,111170.0,0.49429974]
[1761293607530,1.598234,111180.0,111170.0,0.49429974]
[1761293609281,1.598234,111180.0,111170.0,0.48553054]
[1761293610180,1.655794,111180.0,111170.0,0.48553054]
[1761293612608,1.656794,111180.0,111170.0,0.48553054]
[1761293614548,1.656554,111180.0,111170.0,0.48553054]
[1761293614753,1.74637301,111180.0,111170.0,0.48553054]
[1761293614891,1.58641301,111180.0,111170.0,0.48553054]
[1761293615098,1.74637301,111180.0,111170.0,0.48553054]
[1761293615648,1.71937514,111180.0,111170.0,0.48553054]
[1761293616687,1.73875459,111180.0,111170.0,0.48553054]
[1761293616907,1.73594415,111180.0,111170.0,0.48553054]
[1761293621270,1.73594415,111180.0,111170.0,0.48553054]
[1761293622240,1.73594415,111180.0,111170.0,0.47968385]
[1761293623069,1.73574415,111180.0,111170.0,0.47968385]
[1761293626202,1.74574414,111180.0,111170.0,0.47968385]
[1761293627625,0.1799694,111130.0,111120.0,0.42510642]
[1761293627839,0.39743479,111130.0,111120.0,0.42510642]
[1761293628046,0.21746539,111130.0,111120.0,0.42510642]
[1761293628969,0.05770539,111130.0,111120.0,0.73873009]
[1761293629244,0.21746539,111130.0,111120.0,0.73473009]
[1761293629463,0.21746539,111130.0,111120.0,0.73773009]
[1761293629898,0.21746539,111130.0,111120.0,0.43010642]
[1761293630309,0.21746539,111130.0,111120.0,0.42810642]
[1761293630534,0.21746539,111130.0,111120.0,0.42910642]
[1761293631162,0.21746539,111130.0,111120.0,0.73673009]
[1761293632577,0.21746539,111130.0,111120.0,0.42910642]
[1761293632816,0.21746539,111130.0,111120.0,0.73673009]
[1761293633243,0.21896155,111130.0,111120.0,0.73673009]
[1761293634584,0.21884155,111130.0,111120.0,0.73673009]
[1761293634790,0.05920155,111130.0,111120.0,0.73673009]
[1761293634998,0.21884155,111130.0,111120.0,0.73673009]
[1761293636854,0.21884155,111130.0,111120.0,1.04446202]
[1761293637795,0.21884155,111130.0,111120.0,1.54446202]
[1761293641275,0.05920155,111130.0,111120.0,1.94195883]
[1761293641449,0.21872155,111130.0,111120.0,1.01892543]
[1761293641697,0.00164155,111130.0,111120.0,1.94195883]
[1761293641899,0.00164155,111130.0,111120.0,3.23554204]
[1761293642106,0.00164155,111130.0,111120.0,3.329037]
[1761293642107,0.00300155,111130.0,111120.0,3.329037]
[1761293643330,0.00300155,111130.0,111120.0,2.4060036]
[1761293643535,0.00300155,111130.0,111120.0,2.34641939]
[1761293643875,0.00300155,111130.0,111120.0,2.54641939]
[1761293644462,0.00164155,111130.0,111120.0,2.54641939]
[1761293644996,0.00164155,111130.0,111120.0,2.61348893]
[1761293645195,0.00164155,111130.0,111120.0,2.54641939]
[1761293648289,0.00164155,111130.0,111120.0,2.48195883]
[1761293649659,0.00164155,111130.0,111120.0,2.54908234]
[1761293651553,0.00164155,111130.0,111120.0,2.24140454]
[1761293651769,0.00164155,111130.0,111120.0,2.17428103]
[1761293652006,0.00164155,111130.0,111120.0,1.83428103]
[1761293652625,0.05756,111150.0,111140.0,0.21613017]
[1761293652831,0.217,111150.0,111140.0,0.52380797]
[1761293653864,0.39693702,111150.0,111140.0,0.34486008]
[1761293654077,1.13443383,111150.0,111140.0,0.001]
[1761293654492,1.13443383,111150.0,111140.0,0.002]
[1761293654699,1.15377394,111150.0,111140.0,0.002]
[1761293655111,1.15377394,111150.0,111140.0,0.001]
[1761293655519,1.15477394,111150.0,111140.0,0.001]
[1761293655722,0.1799694,111130.0,111120.0,0.53618228]
[1761293655924,0.3396494,111130.0,111120.0,0.53618228]
[1761293656745,0.3396494,111130.0,111120.0,0.84386008]
[1761293656959,0.3396494,111130.0,111120.0,0.84486008]
[1761293657372,0.3396494,111130.0,111120.0,0.84586008]
[1761293658466,0.3396494,111130.0,111120.0,0.53818228]
[1761293658870,0.3396494,111130.0,111120.0,0.84586008]
[1761293660157,0.3396494,111130.0,111120.0,0.53818228]
[1761293660407,0.3396494,111130.0,111120.0,0.84586008]
[1761293661145,0.3396494,111130.0,111120.0,0.53818228]
[1761293666947,0.3396494,111130.0,111120.0,0.84586008]
[1761293667184,0.3396494,111130.0,111120.0,1.02584568]
[1761293667805,0.3396494,111130.0,111120.0,0.84586008]
[1761293668432,0.3396494,111130.0,111120.0,0.53818228]
[1761293668858,0.3972094,111130.0,111120.0,0.53818228]
[1761293669502,0.3972094,111130.0,111120.0,1.02584568]
[1761293669726,0.3972094,111130.0,111120.0,0.84586008]
[1761293672271,0.3972094,111130.0,111120.0,1.02584568]
[1761293672485,0.3972094,111130.0,111120.0,0.84586008]
[1761293673573,0.3972094,111130.0,111120.0,0.53818228]
[1761293673787,0.3972094,111130.0,111120.0,0.84586008]
[1761293674009,0.5452072,111130.0,111120.0,0.502]
[1761293674227,0.7045672,111130.0,111120.0,0.502]
[1761293674442,1.0445672,111130.0,111120.0,0.502]
[1761293674669,1.13438621,111130.0,111120.0,0.502]
[1761293674946,1.22420522,111130.0,111120.0,0.502]
[1761293675166,1.44206401,111130.0,111120.0,0.501]
[1761293675380,1.13438621,111130.0,111120.0,0.501]
[1761293675759,1.44206401,111130.0,111120.0,0.501]
[1761293676187,1.44206401,111130.0,111120.0,0.5]
[1761293676395,1.13438621,111130.0,111120.0,0.5]
[1761293677863,0.82670841,111130.0,111120.0,0.5]
[1761293677999,1.44206401,111130.0,111120.0,0.5]
[1761293678397,1.15370229,111130.0,111120.0,0.5]
[1761293679410,1.46338009,111130.0,111120.0,0.5]
[1761293679825,1.15570229,111130.0,111120.0,0.5]
[1761293680826,1.46338009,111130.0,111120.0,0.5]
[1761293681026,1.5531991,111130.0,111120.0,0.5]
[1761293682026,1.46338009,111130.0,111120.0,0.5]
[1761293682452,1.46338009,111130.0,111120.0,0.05425968]
[1761293682663,1.46338009,111130.0,111050.0,0.89715104]
[1761293682664,0.5200342,111090.0,111050.0,0.89715104]
[1761293682875,0.18006662,111070.0,111060.0,0.18008283]
[1761293683080,0.18006662,111070.0,111050.0,1.01413464]
[1761293683285,0.15948,111060.0,111050.0,0.70645684]
[1761293683486,0.15948,111060.0,111050.0,1.01413464]
[1761293683694,0.15948,111060.0,111050.0,1.05031692]
[1761293683902,0.15948,111060.0,111050.0,1.01413464]
[1761293684128,0.15948,111060.0,111050.0,1.01613464]
[1761293684547,0.15948,111060.0,111050.0,1.01413464]
[1761293684752,0.15948,111060.0,111050.0,1.05031692]
[1761293685059,0.15948,111060.0,111050.0,1.02529772]
[1761293685689,0.15948,111060.0,111050.0,1.03129772]
[1761293686721,0.15948,111060.0,111050.0,0.72361992]
[1761293686923,0.15948,111060.0,111050.0,1.03129772]
[1761293689625,0.18906611,111080.0,111060.0,0.21625857]
[1761293689974,0.217,111070.0,111060.0,0.52393637]